fUSD/lending_fUSD_20251229
["ID","MTS","AMOUNT","RATE_DAILY","PERIOD"]
[400031956,1767042632540,-746.30898538,0.000169,2]
[400031957,1767042632550,-1403.80161579,0.000169,2]
[400031960,1767042632559,-174.21707355,0.000169,2]
[400031962,1767042632571,-167.92,0.00016963,2]
[400031964,1767042632580,-500.0,0.00016973,2]
[400031966,1767042632590,-500.0,0.00016973,2]
[400031968,1767042632599,-500.0,0.00016973,2]
[400031970,1767042632609,-500.0,0.00016973,2]
[400031971,1767042632618,-500.0,0.00016973,2]
[400031973,1767042632628,-559.28446362,0.00016973,2]
[400031975,1767042632637,-500.0,0.00016973,2]
[400031978,1767042632650,-500.0,0.00016973,2]
[400031980,1767042632661,-500.0,0.00016973,2]
[400031982,1767042632670,-500.0,0.00016973,2]
[400031984,1767042632680,-500.0,0.00016973,2]
[400031986,1767042632689,-500.0,0.00016973,2]
[400031988,1767042632699,-201.79336227,0.00016973,2]
[400031990,1767042632709,-207.3850141,0.00016973,2]
[400031992,1767042632718,-500.0,0.00016973,2]
[400031994,1767042632727,-150.40009762,0.00016973,2]
[400031996,1767042632737,-150.0,0.00016973,2]
[400031998,1767042632748,-290.0,0.00016985,2]
[400032000,1767042632757,-262.39466146,0.00016986,2]
[400032002,1767042632766,-196.28780998,0.00016986,2]
[400032004,1767042632775,-300.0,0.00016999,2]
[400032006,1767042632786,-300.0,0.00016999,2]
[400032008,1767042632795,-666.0,0.00016999,2]
[400032010,1767042632804,-300.0,0.00016999,2]
[400032012,1767042632814,-300.0,0.00016999,2]
[400032014,1767042632823,-666.0,0.00016999,2]
[400032016,1767042632833,-500.0,0.00016999,2]
[400032018,1767042632843,-421.73479235,0.00016999,2]
[400032020,1767042632851,-12220.36502439,0.00017,2]
[400032023,1767042632866,-3035.99999999,0.00017,2]
[400032025,1767042632877,-1242.82150411,0.00017,2]
[400032027,1767042632887,-32255.05682256,0.00017,2]
[400032030,1767042632902,-324.98920754,0.00017,2]
[400032032,1767042632914,-564.489387,0.00017,2]
[400032034,1767042632925,-3875.8766436,0.00017,2]
[400032036,1767042632936,-806.80112719,0.00017,2]
[400032038,1767042632948,-580.95918743,0.00017,2]
[400032054,1767042637966,-27248.08636569,0.00017,2]
[400032055,1767042637978,-604.0,0.00017,2]
[400032056,1767042638025,-90348.5886691,0.00017,2]
[400032243,1767042639994,-436.24,0.00017,2]
[400032256,1767042640106,-623770.93360933,0.00017,2]
[400032269,1767042640214,-97639.96589887,0.00017,2]
[400032271,1767042640225,-327585.81906912,0.00017,2]
[400032611,1767042643527,-151.0,0.00016528,2]
[400032613,1767042643538,-151.0,0.00016528,2]
[400032615,1767042643547,-309.755986,0.00017,2]
[400032669,1767042644207,-12558.16716273,0.00017,2]
[400032708,1767042644595,-1762.677248,0.00017,2]
[400032715,1767042644656,-632713.56923568,0.00017,2]
[400032718,1767042644670,-96736.51889155,0.00017,2]
[400032847,1767042645892,-964.8,0.00017,2]
[400032854,1767042645950,-419.99999999,0.00017,2]
[400033737,1767043671975,-231.8,0.00013699,2]
[400033738,1767043672000,-68.20313919,0.00014,2]
[400033739,1767043677548,-267.0,0.00014,2]
[400033740,1767043679562,-166.66,0.00014,2]
[400033750,1767043831935,-998.13686081,0.00014,2]
[400033751,1767043831945,-15.88858927,0.00014,2]
[400033752,1767043831957,-249.11141073,0.00014,2]
[400033753,1767043831967,-300.0,0.00015068,2]
[400033754,1767043831977,-300.0,0.000154,2]
[400033755,1767043831986,-500.0,0.00015644,2]
[400033756,1767043831995,-1200.0,0.00015856,2]
[400033762,1767043832223,-2301.2371081,0.00015857,2]
[400033764,1767043832235,-335.26580545,0.00015857,2]
[400033767,1767043832250,-284.77163,0.00015857,2]
[400033769,1767043832261,-2225.9,0.00015857,2]
[400033771,1767043832273,-999.67682255,0.00015857,2]
[400033774,1767043832288,-5807.35260329,0.00015857,2]
[400033777,1767043832299,-1715.15603061,0.00015857,2]
[400033780,1767043832308,-999.0,0.00015952,3]
[400033783,1767043832317,-5000.00069402,0.000162,5]
[400033786,1767043832326,-500.0,0.00016329,2]
[400033788,1767043832335,-168.93438109,0.00016406,2]
[400033793,1767043832352,-1428.93,0.00016422,2]
[400033795,1767043832364,-200.0,0.000165,2]
[400033797,1767043832382,-151.0,0.00016502,2]
[400033799,1767043832391,-65166.31102279,0.00016505,2]
[400033802,1767043832402,-40079.15435947,0.00016505,2]
[400033804,1767043832413,-40079.9884312,0.00016505,2]
[400033815,1767043838009,-1650.0,0.00016505,2]
[400033817,1767043838068,-18076.96787804,0.00016505,2]
[400033818,1767043838079,-624.134,0.00016505,2]
[400033819,1767043838124,-356.0188694,0.00016505,2]
[400033820,1767043838136,-722.46490153,0.00016505,2]
[400033821,1767043838147,-593.27536952,0.00016505,2]
[400033822,1767043838182,-3120.63070504,0.00016505,2]
[400033823,1767043838194,-778.58817429,0.00016505,2]
[400033824,1767043838205,-478.95997779,0.00016505,2]
[400033825,1767043838216,-1086.8797393,0.00016505,2]
[400033988,1767043840037,-57321.63059446,0.00016505,2]
[400033995,1767043840094,-4100.14865549,0.00016505,2]
[400033997,1767043840105,-386.49005528,0.00016505,2]
[400033999,1767043840116,-1219.4810845,0.00016505,2]
[400034001,1767043840127,-2732.7300008,0.00016505,2]
[400034004,1767043840140,-1588.82115271,0.00016505,2]
[400034006,1767043840151,-445.82391343,0.00016505,2]
[400034008,1767043840162,-443.58598797,0.00016505,2]
[400034012,1767043840194,-801.50537532,0.00016505,2]
[400034014,1767043840204,-600.0,0.00016505,2]
[400034016,1767043840215,-801.04957216,0.00016505,2]
[400034019,1767043840227,-474.61882555,0.00016505,2]
[400034021,1767043840238,-394.95440656,0.00016505,2]
[400034023,1767043840249,-1752.24632305,0.00016505,2]
[400034026,1767043840264,-665945.65262435,0.00016505,2]
[400034027,1767043840274,-2500.0,0.00016506,2]
[400034029,1767043840283,-151.1029024,0.0001656,2]
[400034031,1767043840292,-325.35337431,0.00016596,2]
[400034033,1767043840301,-200.0,0.00016596,2]
[400034035,1767043840311,-500.0,0.00016596,2]
[400034037,1767043840320,-864.96,0.00016605,2]
[400034039,1767043840330,-500.0,0.00016605,2]
[400034041,1767043840339,-500.0,0.00016605,2]
[400034043,1767043840349,-167.177157,0.00016605,2]
[400034045,1767043840358,-500.0,0.00016605,2]
[400034047,1767043840367,-500.0,0.00016605,2]
[400034049,1767043840377,-500.0,0.00016605,2]
[400034051,1767043840386,-500.0,0.00016605,2]
[400034053,1767043840395,-500.0,0.00016605,2]
[400034055,1767043840405,-243.79421444,0.00016605,2]
[400034057,1767043840414,-500.0,0.00016605,2]
[400034059,1767043840425,-500.0,0.00016605,2]
[400034061,1767043840434,-500.0,0.00016605,2]
[400034063,1767043840444,-500.0,0.00016605,2]
[400034065,1767043840453,-500.0,0.00016605,2]
[400034067,1767043840465,-500.0,0.00016605,2]
[400034069,1767043840475,-500.0,0.00016605,2]
[400034071,1767043840484,-500.0,0.00016605,2]
[400034073,1767043840494,-500.0,0.00016605,2]
[400034075,1767043840504,-500.0,0.00016605,2]
[400034078,1767043840513,-500.0,0.00016605,2]
[400034080,1767043840523,-500.0,0.00016605,2]
[400034081,1767043840532,-500.0,0.00016605,2]
[400034083,1767043840541,-500.0,0.00016605,2]
[400034085,1767043840551,-500.0,0.00016605,2]
[400034088,1767043840560,-500.0,0.00016605,2]
[400034090,1767043840570,-361.82599418,0.00016605,2]
[400034091,1767043840580,-500.0,0.00016605,2]
[400034094,1767043840590,-500.0,0.00016605,2]
[400034096,1767043840599,-500.0,0.00016605,2]
[400034097,1767043840608,-500.0,0.00016605,2]
[400034099,1767043840617,-500.0,0.00016605,2]
[400034102,1767043840627,-500.0,0.00016605,2]
[400034103,1767043840637,-500.0,0.00016605,2]
[400034105,1767043840647,-500.0,0.00016605,2]
[400034108,1767043840660,-500.0,0.00016605,2]
[400034110,1767043840669,-300.66062366,0.00016605,2]
[400034112,1767043840679,-500.0,0.00016605,2]
[400034114,1767043840688,-500.0,0.00016605,2]
[400034116,1767043840697,-500.0,0.00016605,2]
[400034118,1767043840707,-500.0,0.00016605,2]
[400034120,1767043840716,-500.0,0.00016605,2]
[400034122,1767043840727,-600.0,0.00016605,2]
[400034124,1767043840736,-500.0,0.00016605,2]
[400034126,1767043840745,-500.0,0.00016605,2]
[400034128,1767043840754,-500.0,0.00016606,2]
[400034130,1767043840764,-500.0,0.00016606,2]
[400034132,1767043840774,-504.77627609,0.00016606,2]
[400034134,1767043840783,-500.0,0.00016606,2]
[400034136,1767043840792,-500.0,0.00016606,2]
[400034138,1767043840805,-500.0,0.00016606,2]
[400034140,1767043840818,-500.0,0.00016606,2]
[400034142,1767043840827,-151.0,0.00016684,2]
[400034144,1767043840837,-766.76,0.00016687,2]
[400034146,1767043840846,-150.0,0.00016699,2]
[400034148,1767043840857,-150.0,0.00016699,2]
[400034150,1767043840869,-150.0,0.00016699,2]
[400034152,1767043840879,-150.0,0.00016699,2]
[400034155,1767043840891,-150.0,0.00016699,2]
[400034157,1767043840901,-150.0,0.00016699,2]
[400034158,1767043840910,-150.0,0.00016699,2]
[400034160,1767043840919,-200.0,0.00016699,2]
[400034162,1767043840929,-282.19614538,0.00016699,2]
[400034164,1767043840938,-150.0,0.00016699,2]
[400034166,1767043840947,-242.35189507,0.00016699,2]
[400034168,1767043840956,-150.0,0.00016699,2]
[400034170,1767043840965,-500.0,0.00016699,2]
[400034172,1767043840975,-150.0,0.00016699,2]
[400034174,1767043840984,-150.0,0.00016699,2]
[400034176,1767043840993,-150.0,0.00016699,2]
[400034178,1767043841002,-150.0,0.00016699,2]
[400034180,1767043841011,-150.0,0.00016699,2]
[400034182,1767043841021,-500.0,0.00016699,2]
[400034184,1767043841030,-150.0,0.00016699,2]
[400034186,1767043841039,-150.0,0.00016699,2]
[400034188,1767043841048,-200.0,0.00016699,2]
[400034190,1767043841062,-165.38,0.00016712,2]
[400034192,1767043841072,-150.0,0.00016726,2]
[400034194,1767043841082,-150.0,0.00016726,2]
[400034196,1767043841092,-150.0,0.00016726,2]
[400034198,1767043841101,-200.0,0.00016726,2]
[400034200,1767043841111,-500.0,0.00016726,2]
[400034202,1767043841121,-150.0,0.00016726,2]
[400034204,1767043841130,-500.0,0.00016726,2]
[400034206,1767043841139,-150.0,0.00016726,2]
[400034208,1767043841149,-200.0,0.00016754,2]
[400034210,1767043841159,-150.0,0.00016754,2]
[400034212,1767043841168,-150.0,0.00016754,2]
[400034214,1767043841177,-556.16694322,0.00016754,2]
[400034216,1767043841186,-150.0,0.00016754,2]
[400034218,1767043841195,-324.0,0.00016754,2]
[400034220,1767043841204,-200.0,0.00016754,2]
[400034222,1767043841213,-217.71595171,0.00016781,2]
[400034224,1767043841222,-200.0,0.00016781,2]
[400034226,1767043841232,-150.0,0.00016781,2]
[400034228,1767043841242,-250.0,0.00016809,2]
[400034231,1767043841255,-864.96,0.00016879,2]
[400034233,1767043841264,-1000.0,0.000169,2]
[400034235,1767043841274,-684.006365,0.000169,2]
[400034237,1767043841284,-186.5138847,0.000169,2]
[400034239,1767043841293,-175.71265842,0.000169,2]
[400034241,1767043841303,-1326.60706603,0.000169,2]
[400034243,1767043841312,-199.29290972,0.00016966,2]
[400034245,1767043841321,-204.58187563,0.00016973,2]
[400034247,1767043841330,-166.98451407,0.00016973,2]
[400034249,1767043841347,-33.01548593,0.00016973,2]
[400034251,1767043841356,-151.0,0.00016997,2]
[400034253,1767043841366,-315.98451407,0.00016999,2]
[400034256,1767043841377,-238.69548593,0.00016999,2]
[400034258,1767043841387,-209.95796904,0.00016999,2]
[400034260,1767043841398,-90.04203096,0.00016999,2]
[400034262,1767043841407,-869.33052655,0.00017,2]
[400034264,1767043841418,-624222.93360933,0.00017,2]
[400034266,1767043841432,-124640.20355682,0.00017,2]
[400034493,1767043843744,-1821.82014999,0.00017,2]
[400034495,1767043843755,-26220.84080366,0.00017,2]
[400034501,1767043843807,-7272.30772007,0.00017,2]
[400034577,1767043844661,-1186.55161952,0.00017,2]
[400034579,1767043844673,-5545.5,0.00017,2]
[400034581,1767043844685,-557.96001026,0.00017,2]
[400034583,1767043844698,-92183.63048953,0.00017,2]
[400034586,1767043844708,-7330.36001906,0.00017,2]
[400034588,1767043844718,-1625.7786263,0.00017,2]
[400034590,1767043844728,-22365.5427012,0.00017,2]
[400034592,1767043844737,-4904.8077614,0.00017,2]
[400034594,1767043844747,-250.0,0.00017,2]
[400034596,1767043844756,-71355.8932821,0.00017,2]
[400034598,1767043844765,-94235.79174679,0.00017,2]
[400034600,1767043844778,-95789.43440253,0.00017,2]
[400034602,1767043844791,-343.75704941,0.00017,2]
[400034605,1767043844803,-300.0,0.00017,2]
[400034607,1767043844816,-15135.09587023,0.00017,2]
[400034729,1767043846063,-344576.15786243,0.00017,2]
[400034737,1767043846124,-6817.39621336,0.00017,2]
[400034739,1767043846136,-4363.76389369,0.00017,2]
[400034741,1767043846147,-1587.635991,0.00017,2]
[400034743,1767043846158,-521.50544742,0.00017,2]
[400034746,1767043846169,-540.52,0.00017,2]
[400034749,1767043846190,-404.73403491,0.00017,2]
[400034751,1767043846201,-76881.18216366,0.00017,2]
[400035573,1767044367750,150.52,8.059e-05,2]
[400035574,1767044368008,150.52,8.865e-05,2]
[400035575,1767044368220,150.52,9.671e-05,2]
[400035576,1767044368534,150.52,0.00010477,2]
[400035577,1767044368666,150.52,0.00011283,2]
[400035578,1767044368820,150.52,0.00012088,2]
[400035579,1767044376838,-150.52,0.00012894,2]
[400035580,1767044376862,-16.14454859,0.000137,2]
[400035584,1767045032159,-134.37545141,0.000137,2]
[400035586,1767045032178,-150.52,0.00014506,2]
[400035587,1767045032188,-166.66,0.00014731,2]
[400035589,1767045032197,-166.66,0.00015041,2]
[400035591,1767045032207,-195.0,0.0001507,2]
[400035593,1767045032216,-66.24198471,0.00015288,2]
[400035594,1767045032227,-83.7580153,0.00015288,2]
[400035595,1767045032236,-150.52,0.00015312,2]
[400035596,1767045032246,-166.66,0.00015351,2]
[400035597,1767045032255,-174.82,0.00015507,2]
[400035598,1767045032264,-88.88006289,0.00015507,2]
[400035599,1767045032276,-105.11993711,0.00015507,2]
[400035600,1767045032285,-969.83,0.00015524,2]
[400035601,1767045032295,-166.66,0.00015661,2]
[400035602,1767045032304,-467.25,0.0001571,2]
[400035603,1767045032313,-200.0,0.00015924,2]
[400035604,1767045032323,-166.66,0.00015971,2]
[400035605,1767045032332,-500.0,0.00016,2]
[400035606,1767045032341,-500.0,0.00016,2]
[400035607,1767045032351,-515.15638219,0.00016022,2]
[400035608,1767045032362,-484.84361781,0.00016022,2]
[400035609,1767045032372,-166.73,0.00016089,2]
[400035610,1767045032381,-150.52,0.00016118,2]
[400035611,1767045032391,-150.0,0.00016128,2]
[400035612,1767045032403,-153.72,0.0001625,2]
[400035614,1767045032412,-166.66,0.00016281,2]
[400035615,1767045032421,-300.0,0.00016375,2]
[400035617,1767045032430,-714.4297427,0.00016376,2]
[400035620,1767045032447,-2035.39878205,0.00016376,2]
[400035622,1767045032455,-91.98109302,0.00016405,2]
[400035624,1767045032470,-287.57868463,0.00016405,2]
[400035626,1767045032481,-10957.99854066,0.00016405,2]
[400035650,1767045032672,-3592.19999998,0.00016405,2]
[400035664,1767045038323,-200.0,0.00015232,2]
[400035665,1767045038333,-4922.48611647,0.00016405,2]
[400035666,1767045038345,-135285.62387498,0.00016405,2]
[400035667,1767045038383,-2433.59788731,0.00016405,2]
[400035668,1767045038394,-1144.49982303,0.00016405,2]
[400035669,1767045038453,-3379.8,0.00016405,2]
[400035670,1767045038465,-6632.64964122,0.00016405,2]
[400035671,1767045038477,-9763.8509387,0.00016405,2]
[400035672,1767045038487,-151.10290238,0.00016476,2]
[400035673,1767045038496,-1518.902,0.00016504,2]
[400035674,1767045038506,-227.66346839,0.00016545,2]
[400035676,1767045038518,-2522.16505636,0.00016545,2]
[400035678,1767045038528,-168.0,0.00016677,2]
[400035680,1767045038537,-34.57144364,0.00016677,2]
[400035682,1767045038549,-133.42855636,0.00016677,2]
[400035684,1767045038558,-500.0,0.00016685,2]
[400035686,1767045038568,-489.28036035,0.00016715,2]
[400035688,1767045038580,-624.91291495,0.00016715,2]
[400035837,1767045040336,-1635.63524945,0.00016715,2]
[400035839,1767045040347,-150.0,0.00016726,2]
[400035841,1767045040358,-199.29290972,0.0001677,2]
[400035843,1767045040367,-200.0,0.00016863,2]
[400035845,1767045040377,-200.0,0.00016864,2]
[400035847,1767045040386,-200.0,0.00016864,2]
[400035849,1767045040395,-2749.82852475,0.00016884,2]
[400035851,1767045040404,-528.74944167,0.000169,2]
[400035853,1767045040416,-3761.56668137,0.000169,2]
[400035869,1767045040574,-2243.95,0.000169,2]
[400035874,1767045040606,-2024.83845501,0.000169,2]
[400035876,1767045040618,-1440.89542195,0.000169,2]
[400035878,1767045040627,-456.00424332,0.000169,2]
[400035880,1767045040637,-164.84756872,0.000169,2]
[400035882,1767045040646,-1556.37114737,0.000169,2]
[400035884,1767045040655,-1105.50588835,0.000169,2]
[400035886,1767045040665,-4799.0,0.000169,2]
[400035888,1767045040674,-168.0,0.00016957,2]
[400035890,1767045040683,-150.0,0.00016973,2]
[400035892,1767045040693,-151.0,0.00016997,2]
[400035894,1767045040702,-300.0,0.00016999,2]
[400035896,1767045040711,-306.35405335,0.00016999,2]
[400035898,1767045040720,-15298.9151191,0.00016999,2]
[400035900,1767045040730,-1338.6065407,0.00016999,2]
[400035902,1767045040740,-500.0,0.00016999,2]
[400035904,1767045040749,-500.0,0.00016999,2]
[400035906,1767045040759,-619.65536694,0.00016999,2]
[400035908,1767045040769,-500.0,0.00016999,2]
[400035910,1767045040779,-500.0,0.00016999,2]
[400035912,1767045040788,-479.25605099,0.00016999,2]
[400035914,1767045040797,-593888.52220854,0.00017,2]
[400035917,1767045040813,-15918.08659907,0.00017,2]
[400036465,1767045046332,-151.0,0.000165,2]
[400036467,1767045046342,-151.0,0.000165,2]
[400036469,1767045046352,-644.00243032,0.00017,2]
[400036471,1767045046364,-373.96952708,0.00017,2]
[400036473,1767045046376,-357.44392793,0.00017,2]
[400036476,1767045046399,-21044.76324447,0.00017,2]
[400036478,1767045046411,-791.07285415,0.00017,2]
[400036486,1767045046478,-8911.79410613,0.00017,2]
[400036488,1767045046489,-950.00208372,0.00017,2]
[400036501,1767045046620,-4302.89348897,0.00017,2]
[400036503,1767045046632,-3275.848593,0.00017,2]
[400036505,1767045046645,-616.0,0.00017,2]
[400036510,1767045046688,-2486.13672743,0.00017,2]
[400036656,1767045048281,-345.7829875,0.00017,2]
[400036658,1767045048294,-301.1,0.00017,2]
[400036660,1767045048307,-1620.7380464,0.00017,2]
[400036662,1767045048320,-500.0,0.00017,2]
[400036665,1767045048332,-1599.7566905,0.00017,2]
[400036667,1767045048344,-358.46845774,0.00017,2]
[400036669,1767045048356,-36161.77727969,0.00017,2]
[400036671,1767045048369,-2365.08758627,0.00017,2]
[400036673,1767045048381,-1825.84649464,0.00017,2]
[400036679,1767045048433,-14960.77879782,0.00017,2]
[400036687,1767045048505,-276.93361131,0.00017,2]
[400036831,1767045050066,-5521.0,0.00017,2]
[400036833,1767045050079,-1001.9863755,0.00017,2]
[400036836,1767045050090,-151083.41126464,0.00017,2]
[400036842,1767045050141,-195542.13897345,0.00017,2]
[400036844,1767045050154,-89351.42199283,0.00017,2]
[400037243,1767046231381,-238.38,0.00013699,2]
[400037244,1767046231391,-600.0,0.00014493,2]
[400037245,1767046231400,-600.0,0.00015068,2]
[400037246,1767046231410,-600.0,0.00015152,2]
[400037247,1767046231419,-410.00172906,0.00015152,2]
[400037248,1767046231432,-189.99827094,0.00015152,2]
[400037249,1767046231442,-150.0,0.00015288,2]
[400037250,1767046231452,-150.0,0.00015288,2]
[400037251,1767046231461,-150.0,0.00015288,2]
[400037252,1767046231470,-150.0,0.00015288,2]
[400037253,1767046231479,-150.0,0.00015288,2]
[400037254,1767046231490,-150.0,0.00015288,2]
[400037255,1767046231499,-150.0,0.00015288,2]
[400037256,1767046231511,-248.71834264,0.00015342,2]
[400037257,1767046231521,-648.38,0.00015529,2]
[400037258,1767046231532,-150.0,0.00015904,2]
[400037259,1767046231545,-1257.0,0.00015971,2]
[400037260,1767046231554,-1048.95,0.0001602,2]
[400037261,1767046231563,-947.75506937,0.00016105,2]
[400037262,1767046231575,-300.0,0.00016148,2]
[400037263,1767046231586,-500.0,0.00016149,2]
[400037264,1767046231595,-2667.99,0.00016191,2]
[400037265,1767046231604,-151.0,0.00016202,2]
[400037267,1767046231616,-151.0,0.00016202,2]
[400037270,1767046231627,-154.17002449,0.00016202,2]
[400037271,1767046231637,-500.0,0.00016204,2]
[400037273,1767046231646,-500.0,0.00016204,2]
[400037275,1767046231655,-500.0,0.00016204,2]
[400037277,1767046231664,-500.0,0.00016204,2]
[400037278,1767046231673,-500.0,0.00016204,2]
[400037280,1767046231682,-500.0,0.00016204,2]
[400037281,1767046231691,-500.0,0.00016204,2]
[400037282,1767046231701,-500.0,0.00016204,2]
[400037283,1767046231711,-500.0,0.00016204,2]
[400037284,1767046231720,-500.0,0.00016204,2]
[400037285,1767046231729,-500.0,0.00016204,2]
[400037286,1767046231740,-500.0,0.00016204,2]
[400037287,1767046231749,-500.0,0.00016204,2]
[400037288,1767046231758,-500.0,0.00016204,2]
[400037289,1767046231767,-500.0,0.00016204,2]
[400037290,1767046231777,-500.0,0.00016204,2]
[400037291,1767046231786,-500.0,0.00016204,2]
[400037292,1767046231795,-340.58538769,0.00016204,2]
[400037293,1767046231804,-500.0,0.00016204,2]
[400037294,1767046231813,-500.0,0.00016204,2]
[400037295,1767046231822,-500.0,0.00016204,2]
[400037296,1767046231831,-500.0,0.00016204,2]
[400037297,1767046231841,-500.0,0.00016204,2]
[400037298,1767046231850,-500.0,0.00016204,2]
[400037299,1767046231859,-5046.41348082,0.00016205,2]
[400037300,1767046231868,-200953.04096101,0.00016205,2]
[400037301,1767046231997,-62586.82443954,0.00016205,2]
[400037302,1767046232008,-138150.94704918,0.00016205,2]
[400037303,1767046232019,-90168.43159086,0.00016205,2]
[400037305,1767046237378,-4080.51495798,0.00016205,2]
[400037306,1767046237436,-1346.99999996,0.00016205,2]
[400037307,1767046237448,-1271.85214216,0.00016205,2]
[400037480,1767046239419,-1059.80161734,0.00016205,2]
[400037483,1767046239430,-95891.62886322,0.00016205,2]
[400037489,1767046239477,-546.56670142,0.00016205,2]
[400037498,1767046239554,-5288.5435198,0.00016205,2]
[400037503,1767046239596,-395769.85775753,0.00016205,2]
[400037505,1767046239606,-500.0,0.00016205,2]
[400037507,1767046239616,-2584.6822,0.00016295,2]
[400037509,1767046239625,-53355.9832,0.00016305,2]
[400037511,1767046239634,-155.43017191,0.00016328,2]
[400037513,1767046239644,-322.6107,0.00016328,2]
[400037515,1767046239653,-151.0,0.00016328,2]
[400037517,1767046239662,-150.95426601,0.00016338,2]
[400037519,1767046239671,-2387.84004945,0.00016338,2]
[400037522,1767046239681,-5046.41348081,0.00016393,2]
[400037523,1767046239690,-500.0,0.00016395,2]
[400037526,1767046239700,-500.0,0.00016395,2]
[400037528,1767046239710,-500.0,0.00016395,2]
[400037530,1767046239719,-500.0,0.00016395,2]
[400037532,1767046239728,-500.0,0.00016395,2]
[400037534,1767046239737,-500.0,0.00016395,2]
[400037536,1767046239747,-500.0,0.00016395,2]
[400037538,1767046239756,-644.46532357,0.00016395,2]
[400037540,1767046239765,-500.0,0.00016395,2]
[400037541,1767046239774,-500.0,0.00016395,2]
[400037544,1767046239785,-553.64373807,0.00016395,2]
[400037546,1767046239793,-500.0,0.00016395,2]
[400037548,1767046239802,-500.0,0.00016395,2]
[400037550,1767046239811,-500.0,0.00016395,2]
[400037552,1767046239821,-238.38323648,0.00016395,2]
[400037554,1767046239830,-250.0,0.00016395,2]
[400037556,1767046239839,-1500.0,0.00016395,2]
[400037558,1767046239848,-250.0,0.00016395,2]
[400037560,1767046239857,-250.0,0.00016395,2]
[400037562,1767046239866,-250.0,0.00016395,2]
[400037564,1767046239877,-250.0,0.00016395,2]
[400037565,1767046239885,-250.0,0.00016395,2]
[400037567,1767046239894,-250.0,0.00016395,2]
[400037569,1767046239903,-250.0,0.00016395,2]
[400037571,1767046239912,-250.0,0.00016395,2]
[400037573,1767046239921,-500.0,0.00016395,2]
[400037575,1767046239930,-250.0,0.00016395,2]
[400037577,1767046239939,-500.0,0.00016395,2]
[400037579,1767046239948,-1000.0,0.00016395,2]
[400037582,1767046239960,-250.0,0.00016395,2]
[400037584,1767046239969,-1000.0,0.00016395,2]
[400037585,1767046239977,-250.0,0.00016395,2]
[400037588,1767046239987,-1000.0,0.00016395,2]
[400037589,1767046239996,-250.0,0.00016395,2]
[400037591,1767046240006,-1000.0,0.00016395,2]
[400037594,1767046240015,-250.0,0.00016395,2]
[400037596,1767046240024,-500.0,0.00016395,2]
[400037597,1767046240033,-1000.0,0.00016395,2]
[400037600,1767046240043,-250.0,0.00016395,2]
[400037602,1767046240052,-500.0,0.00016395,2]
[400037603,1767046240061,-1000.0,0.00016395,2]
[400037605,1767046240071,-500.0,0.00016395,2]
[400037608,1767046240081,-1000.0,0.00016395,2]
[400037609,1767046240090,-500.0,0.00016395,2]
[400037612,1767046240099,-846.55569035,0.00016395,2]
[400037614,1767046240108,-620.0,0.00016395,2]
[400037616,1767046240117,-1423.521,0.00016404,2]
[400037618,1767046240128,-544.93100005,0.00016404,2]
[400037620,1767046240137,-500.0,0.00016438,2]
[400037621,1767046240146,-500.0,0.00016438,2]
[400037623,1767046240156,-500.0,0.00016438,2]
[400037625,1767046240165,-500.0,0.00016438,2]
[400037648,1767046240361,-479.25605099,0.00016438,2]
[400037650,1767046240371,-5944.39,0.00016438,2]